bitfinex-derivatives/quotes_SOLF0:USTF0_20251216
["timestamp","ask_amount","ask_price","bid_price","bid_amount"]
[1765901051701,3.38005454,129.46,129.43,0.05191261]
[1765901051906,0.05005454,129.46,129.43,0.05191261]
[1765901053205,3.38005454,129.46,129.43,0.05191261]
[1765901053908,0.05005454,129.46,129.43,0.05191261]
[1765901054107,3.38005454,129.46,129.43,0.05191261]
[1765901055398,3.38005454,129.46,129.43,3.13191261]
[1765901055399,0.05005454,129.46,129.43,3.13191261]
[1765901056308,0.05005454,129.46,129.45,3.08]
[1765901056710,0.05005454,129.46,129.43,10.08651261]
[1765901057015,0.05005454,129.46,129.44,3.08]
[1765901057411,0.05005454,129.46,129.43,0.05191261]
[1765901057613,3.38005454,129.46,129.43,0.05191261]
[1765901059015,3.33,129.45,129.43,0.05191261]
[1765901059613,0.05005454,129.46,129.43,3.13191261]
[1765901061606,0.05005454,129.46,129.43,111.31681261]
[1765901061821,0.05005454,129.46,129.44,3.08]
[1765901062520,3.33,129.44,129.43,0.05191261]
[1765901062714,16.34168816,129.44,129.36,10.0386]
[1765901062915,6.05688816,129.43,129.36,10.0386]
[1765901063219,6.05688816,129.43,129.33,3.08]
[1765901063220,3.33,129.41,129.33,3.08]
[1765901063411,9.38688816,129.4,129.33,3.08]
[1765901063726,0.05381936,129.38,129.35,0.05661757]
[1765901064019,9.38688816,129.37,129.35,0.05661757]
[1765901064233,9.38688816,129.36,129.35,0.05661757]
[1765901064716,9.38688816,129.36,129.3,3.08]
[1765901064908,6.05688816,129.35,129.3,3.08]
[1765901065110,6.05688816,129.34,129.3,3.08]
[1765901065311,6.05688816,129.36,129.3,3.08]
[1765901065515,6.05688816,129.35,129.31,6.9611]
[1765901065722,0.05102927,129.34,129.32,0.04501516]
[1765901066125,6.10791743,129.34,129.32,0.04501516]
[1765901066321,0.05102927,129.34,129.32,0.04501516]
[1765901066706,6.10791743,129.34,129.32,0.04501516]
[1765901066914,0.05102927,129.34,129.32,3.12501516]
[1765901067727,0.05102927,129.34,129.33,3.08]
[1765901068224,0.05102927,129.34,129.32,0.04501516]
[1765901069224,0.05102927,129.34,129.32,3.12501516]
[1765901070222,0.05102927,129.34,129.33,3.08]
[1765901071132,0.00102927,129.34,129.33,3.08]
[1765901074732,3.33102927,129.34,129.32,0.04501516]
[1765901074918,0.00102927,129.34,129.32,3.18501516]
[1765901075321,0.00102927,129.34,129.32,0.04501516]
[1765901076028,0.00102927,129.34,129.26,3.14]
[1765901076029,9.38688816,129.33,129.26,3.14]
[1765901076237,6.05688816,129.32,129.26,3.14]
[1765901076529,6.05688816,129.31,129.28,3.14]
[1765901076732,6.05688816,129.3,129.27,10.1035]
[1765901077031,0.05497431,129.3,129.27,10.1535]
[1765901077333,0.05497431,129.3,129.28,3.14]
[1765901077636,0.05497431,129.3,129.27,10.1535]
[1765901077835,5.80112329,129.29,129.27,10.1535]
[1765901078022,0.05497431,129.3,129.29,3.14]
[1765901078344,5.8548733,129.3,129.29,3.14]
[1765901078528,0.05497431,129.3,129.29,3.14]
[1765901078841,3.33,129.38,129.3,3.14]
[1765901079028,3.33,129.36,129.3,3.14]
[1765901079230,3.33,129.36,129.28,3.14]
[1765901079732,3.33,129.36,129.32,3.14]
[1765901080036,0.05369789,129.35,129.33,0.05903029]
[1765901082740,0.05369789,129.35,129.33,3.19903029]
[1765901083240,0.05369789,129.35,129.33,0.05903029]
[1765901084625,3.38369789,129.35,129.33,0.05903029]
[1765901086543,10.34319789,129.35,129.33,0.05903029]
[1765901086843,3.33,129.34,129.28,6.9627]
[1765901087043,3.33,129.34,129.27,3.14]
[1765901087942,0.04925601,129.32,129.29,3.18594402]
[1765901088440,3.37925601,129.32,129.29,0.04594402]
[1765901090349,3.33,129.3,129.23,3.14]
[1765901090544,3.33,129.3,129.24,3.14]
[1765901090746,3.33,129.3,129.23,108.3546]
[1765901090747,3.33,129.3,129.22,108.36]
[1765901090944,3.33,129.28,129.21,3.14]
[1765901091343,3.38808267,129.26,129.18,3.14]
[1765901091543,0.05353201,129.23,129.18,3.14]
[1765901091742,3.38353201,129.23,129.18,3.14]
[1765901092140,3.38353201,129.23,129.17,3.14]
[1765901092340,0.04884488,129.21,129.19,3.14]
[1765901092547,0.05696348,129.21,129.19,3.14]
[1765901092747,0.05696348,129.21,129.19,10.1079]
[1765901093452,0.05696348,129.21,129.19,6.9679]
[1765901094151,0.05696348,129.21,129.17,10.1086]
[1765901094950,3.38696348,129.21,129.15,6.9699]
[1765901095352,3.38696348,129.21,129.15,111.5622]
[1765901095550,3.38696348,129.21,129.15,3.14]
[1765901096658,10.35396348,129.21,129.15,10.1099]
[1765901097662,3.38696348,129.21,129.15,10.1099]
[1765901099551,3.38696348,129.21,129.17,3.14]
[1765901099747,0.0536901,129.2,129.17,3.14]
[1765901100159,3.3836901,129.2,129.13,3.14]
[1765901100460,3.33,129.16,129.1,6.9724]
[1765901100659,0.05595813,129.14,129.1,10.1124]
[1765901101054,0.05595813,129.14,129.13,3.14]
[1765901101253,26.79465856,129.25,129.16,3.14]
[1765901101452,3.33,129.32,129.22,3.14]
[1765901101651,3.33,129.32,129.24,3.14]
[1765901101949,3.33,129.32,129.21,108.3698]
[1765901102153,0.059528,129.28,129.25,0.04893183]
[1765901102360,0.059528,129.28,129.26,3.14]
[1765901102658,0.059528,129.28,129.25,0.04893183]
[1765901102856,3.389528,129.28,129.25,0.04893183]
[1765901103057,3.33,129.27,129.25,0.04893183]
[1765901103258,3.33,129.25,129.16,3.14]
[1765901103557,3.33,129.25,129.18,3.14]
[1765901104259,3.11849548,129.23,129.18,3.14]
[1765901104762,3.11849548,129.23,129.14,3.2]
[1765901104950,0.0563186,129.2,129.14,111.6289]
[1765901105265,0.0563186,129.2,129.19,3.2]
[1765901105767,131.56963946,129.29,129.19,3.2]
[1765901105768,23.25933946,129.29,129.22,3.2]
[1765901105960,3.06,129.31,129.22,3.2]
[1765901106266,10.0222,129.3,129.23,6.9656]
[1765901106453,10.0222,129.3,129.23,10.1656]
[1765901106659,3.11798256,129.28,129.25,0.0581804]
[1765901107454,0.05798256,129.28,129.25,0.0581804]
[1765901108365,0.05798256,129.28,129.25,3.2581804]
[1765901109074,3.11798256,129.28,129.25,0.0581804]
[1765901110763,3.06,129.26,129.18,3.2]
[1765901111163,138.86524326,129.29,129.2,3.2]
[1765901111164,26.44412747,129.29,129.2,3.2]
[1765901111363,26.44412747,129.29,129.21,3.2]
[1765901111773,10.0212,129.32,129.24,6.965]
[1765901112061,0.05499826,129.29,129.22,3.2]
[1765901112264,3.11499826,129.29,129.22,3.2]
[1765901112465,3.06,129.28,129.18,3.2]
[1765901112669,0.05810651,129.24,129.18,3.2]
[1765901112867,0.05810651,129.24,129.19,10.1678]
[1765901113061,7.17101579,129.31,129.25,3.2]
[1765901113263,3.06,129.32,129.25,3.2]
[1765901113465,3.06,129.32,129.26,6.964]
[1765901114064,0.05415381,129.3,129.28,0.05082137]
[1765901114466,3.11415381,129.3,129.28,0.05082137]
[1765901115966,4.65415381,129.3,129.28,0.00082137]
[1765901116169,3.06,129.29,129.28,0.00082137]
[1765901116859,3.06,129.28,129.16,111.6095]
[1765901117167,3.06,129.25,129.14,3.2]
[1765901117469,3.06,129.25,129.16,111.6129]
[1765901117775,0.052316,129.22,129.18,3.2]
[1765901118171,0.052316,129.22,129.19,3.2]
[1765901118364,0.052316,129.22,129.18,3.2]
[1765901118567,0.052316,129.22,129.2,6.9673]
[1765901118775,0.052316,129.22,129.2,10.1673]
[1765901119063,0.052316,129.22,129.18,3.2]
[1765901119370,0.052316,129.22,129.19,10.1679]
[1765901119678,0.052316,129.22,129.15,111.6246]
[1765901120263,0.052316,129.22,129.18,111.5939]
[1765901120461,0.052316,129.22,129.19,3.2]
[1765901120872,0.052316,129.22,129.21,3.2]
[1765901120873,0.002316,129.22,129.21,3.2]
[1765901121175,0.002316,129.22,129.21,4.74]
[1765901121863,0.002316,129.22,129.21,3.2]
[1765901122466,0.002316,129.22,129.2,6.9673]
[1765901122970,0.002316,129.22,129.21,3.2]
[1765901123177,0.002316,129.22,129.19,0.05142122]
[1765901123376,3.062316,129.22,129.19,0.05142122]
[1765901124082,0.002316,129.22,129.19,0.05142122]
[1765901124273,0.002316,129.22,129.19,3.25142122]
[1765901124683,0.002316,129.22,129.19,0.05142122]
[1765901125282,0.002316,129.22,129.19,7.01922122]
[1765901125481,0.002316,129.22,129.2,3.2]
[1765901125669,0.002316,129.22,129.21,3.2]
[1765901127576,0.002316,129.22,129.2,6.9673]
[1765901128181,0.002316,129.22,129.21,3.2]
[1765901129086,0.002316,129.22,129.21,1.54]
[1765901129477,0.002316,129.22,129.2,6.9673]
[1765901129677,0.002316,129.22,129.21,3.2]
[1765901130380,0.002316,129.22,129.2,8.5073]
[1765901130381,10.22057872,129.33,129.26,3.2]
[1765901130682,7.16057872,129.35,129.28,3.2]
[1765901130883,7.16057872,129.38,129.32,3.2]
[1765901131386,3.1089887,129.36,129.34,0.04910508]
[1765901132689,11.80956742,129.36,129.28,3.2]
[1765901132894,3.06,129.36,129.29,3.2]
[1765901133091,7.16057872,129.38,129.31,3.2]
[1765901133294,10.22057872,129.38,129.31,10.1611]
[1765901133484,3.06,129.37,129.31,10.1611]
[1765901133685,0.05724835,129.35,129.31,3.2]
[1765901133886,0.05724835,129.35,129.32,3.18]
[1765901134592,0.05724835,129.35,129.34,3.18]
[1765901134794,1.34542151,129.41,129.35,3.18]
[1765901135187,4.46542151,129.41,129.34,6.9595]
[1765901135892,3.17790342,129.39,129.36,0.05365956]
[1765901136093,3.12,129.38,129.36,0.05365956]
[1765901136293,3.17790342,129.39,129.36,0.05365956]
[1765901137194,3.12,129.38,129.36,0.05365956]
[1765901137403,3.12,129.36,129.26,3.18]
[1765901137594,3.12,129.36,129.26,111.5096]
[1765901137595,3.12,129.35,129.26,111.5096]
[1765901137800,3.12,129.35,129.29,6.9624]
[1765901137997,3.12,129.35,129.28,3.18]
[1765901138194,3.12,129.35,129.29,3.18]
[1765901138500,0.05024746,129.33,129.31,0.02077085]
[1765901139713,0.05024746,129.33,129.31,3.20077085]
[1765901139907,3.17024746,129.33,129.31,0.00077085]
[1765901140108,3.12,129.32,129.31,0.00077085]
[1765901140501,3.12,129.31,129.24,3.18]
[1765901141015,3.12,129.3,129.21,6.9665]
[1765901141714,0.05947611,129.27,129.21,10.1465]
[1765901142514,0.05947611,129.27,129.22,3.18]
[1765901142718,0.05233764,129.26,129.22,3.18]
[1765901143610,3.17233764,129.26,129.21,10.1465]
[1765901145316,3.17233764,129.26,129.21,3.18]
[1765901146311,3.12,129.25,129.21,3.18]
[1765901146515,3.12,129.25,129.18,3.18]
[1765901146718,0.05558059,129.23,129.19,3.18]
[1765901147412,0.05558059,129.23,129.22,3.18]
[1765901147908,6.9624,129.3,129.24,6.9651]
[1765901148310,3.12,129.29,129.21,6.9664]
[1765901148510,3.12,129.27,129.19,3.18]
[1765901148909,0.05519559,129.24,129.22,0.05558059]
[1765901149310,0.05519559,129.24,129.22,3.23558059]
[1765901150014,3.12,129.3,129.23,3.18]
[1765901150709,10.0822,129.3,129.24,6.9652]
[1765901150909,22.82241989,129.33,129.24,3.18]
[1765901151118,22.82241989,129.33,129.26,3.23470969]
[1765901151119,0.05581492,129.28,129.26,3.23470969]
[1765901151326,0.05244083,129.28,129.26,3.23470969]
[1765901151717,0.05244083,129.28,129.26,0.05470969]
[1765901152821,3.17244083,129.28,129.26,0.05470969]
[1765901153212,3.12,129.27,129.2,3.18]
[1765901153413,10.29506803,129.27,129.2,3.18]
[1765901154321,0.05453456,129.25,129.22,0.05529328]
[1765901154520,3.17453456,129.25,129.22,0.05529328]
[1765901158129,10.13933456,129.25,129.22,0.05529328]
[1765901158438,3.17453456,129.25,129.22,0.05529328]
[1765901158631,0.05453456,129.25,129.22,0.05529328]
[1765901158931,3.17453456,129.25,129.22,0.05529328]
[1765901159535,3.12,129.24,129.22,0.05529328]
[1765901160339,3.12,129.23,129.16,3.18]
[1765901160538,10.82688683,129.22,129.16,3.18]
[1765901161138,3.12,129.2,129.13,111.6173]
[1765901161330,3.12,129.2,129.12,108.4459]
[1765901161331,0.04923888,129.18,129.14,3.18]
[1765901161536,3.16923888,129.18,129.13,10.1508]
[1765901161740,0.05027253,129.17,129.13,10.1508]
[1765901162049,0.05027253,129.17,129.14,3.18]
[1765901162225,0.05027253,129.17,129.13,10.1508]
[1765901162425,3.17027253,129.17,129.1,3.18]
[1765901163227,3.12,129.16,129.1,3.18]
[1765901163429,0.05590185,129.14,129.1,3.18]
[1765901163825,0.05590185,129.14,129.07,108.489]
[1765901163826,3.26590185,129.14,129.07,3.29]
[1765901164243,3.26590185,129.14,129.08,6.9736]
[1765901164634,3.26590185,129.14,129.08,3.29]
[1765901164935,0.05590185,129.14,129.1,3.29]
[1765901165133,7.17506803,129.21,129.14,3.29]
[1765901165438,3.21,129.21,129.15,3.29]
[1765901165636,3.21,129.19,129.1,3.29]
[1765901166137,0.05321177,129.16,129.13,0.04987976]
[1765901166345,0.05321177,129.16,129.13,111.77837976]
[1765901166633,0.00321177,129.16,129.14,3.29]
[1765901166837,0.00321177,129.16,129.15,3.29]
[1765901167038,0.00321177,129.16,129.15,4.83]
[1765901167338,0.00321177,129.16,129.15,3.29]
[1765901167531,0.00321177,129.16,129.15,4.83]
[1765901168136,0.00321177,129.16,129.15,12.54188024]
[1765901168335,3.21,129.27,129.19,3.29]
[1765901168838,6.9635,129.28,129.23,3.29]
[1765901169043,65.18,129.29,129.23,3.29]
[1765901169445,65.18,129.29,129.25,0.05043292]
[1765901169446,3.2650596,129.27,129.25,0.05043292]
[1765901169737,22.69598672,129.27,129.25,0.05043292]
[1765901169940,3.21,129.26,129.17,3.29]
[1765901170336,10.1746,129.26,129.18,6.9683]
[1765901170536,10.1746,129.26,129.17,3.29]
[1765901170740,10.1746,129.26,129.18,3.29]
[1765901170939,0.05300863,129.23,129.21,6.9667]
[1765901171245,0.05300863,129.23,129.2,3.34447513]
[1765901171438,0.00300863,129.23,129.22,3.29]
[1765901172544,0.00300863,129.23,129.22,4.83]
[1765901174141,65.16,129.34,129.28,10.253]
[1765901174336,10.36277577,129.38,129.3,3.29]
[1765901175052,6.9586,129.37,129.3,10.2517]
[1765901175353,0.05271284,129.35,129.32,0.05920289]
[1765901175840,3.26271284,129.35,129.32,0.05920289]
[1765901177349,3.21,129.33,129.32,0.05920289]
[1765901177852,3.21,129.33,129.28,10.2529]
[1765901178849,3.26310445,129.32,129.29,0.0527145]
[1765901179036,3.21,129.3,129.22,111.6533]
[1765901179847,3.21,129.3,129.24,10.2549]
[1765901180153,0.05458108,129.28,129.24,10.2549]
[1765901180648,0.05458108,129.28,129.22,6.9662]
[1765901180649,3.26458108,129.28,129.22,6.9662]
[1765901181847,3.26458108,129.28,129.25,3.29]
[1765901181848,0.05458108,129.28,129.25,3.29]
[1765901182542,0.05458108,129.28,129.27,3.29]
[1765901182940,0.00458108,129.28,129.27,3.29]
[1765901183340,0.00458108,129.28,129.27,4.83]
[1765901185038,0.00458108,129.28,129.27,3.29]
[1765901185444,0.00458108,129.28,129.27,4.83]
[1765901186356,0.00458108,129.28,129.27,12.54188024]
[1765901187046,3.21,129.38,129.31,3.29]
[1765901187659,3.21,129.38,129.27,7.71188024]
[1765901187660,3.21,129.32,129.24,3.29]
[1765901187946,3.21,129.32,129.25,3.29]
[1765901188146,0.05263944,129.3,129.27,3.34512623]
[1765901188542,0.05263944,129.3,129.27,10.30832623]
[1765901188849,0.00263944,129.3,129.28,3.29]
[1765901189048,0.00263944,129.3,129.29,69.07]
[1765901189542,0.00263944,129.3,129.29,78.32188024]
[1765901190842,4.55542151,129.41,129.33,3.29]
[1765901191147,3.21,129.41,129.33,177.3408]
[1765901191742,10.1662,129.41,129.33,177.3408]
[1765901191943,0.05761216,129.38,129.36,0.05419822]
[1765901192146,0.05761216,129.38,129.36,3.34419822]
[1765901192754,0.05761216,129.38,129.36,7.01279822]
[1765901193344,0.05761216,129.38,129.36,10.30279822]
[1765901194553,3.23761216,129.38,129.36,0.00419822]
[1765901194849,3.18,129.37,129.36,0.00419822]
[1765901196153,1.59761216,129.38,129.36,0.00419822]
[1765901196154,0.05761216,129.38,129.36,0.00419822]
[1765901196755,3.23761216,129.38,129.36,0.00419822]
[1765901197757,3.18,129.36,129.29,69.07]
[1765901198055,7.71188024,129.37,129.28,6.9626]
[1765901198056,10.1397,129.35,129.28,6.9626]
[1765901198649,3.18,129.35,129.28,3.31]
[1765901198846,0.04930607,129.33,129.3,0.05022017]
[1765901199054,0.04930607,129.33,129.31,6.9614]
[1765901199259,0.04930607,129.33,129.32,3.31]
[1765901199556,0.04930607,129.33,129.31,10.2714]
[1765901199756,0.04930607,129.33,129.32,3.31]
[1765901200150,7.71188024,129.4,129.34,6.9597]
[1765901200356,3.18,129.41,129.34,3.31]
[1765901201146,0.0562324,129.39,129.36,0.05295825]
[1765901201345,0.0562324,129.39,129.36,7.01175825]
[1765901201652,0.0562324,129.39,129.36,0.05295825]
[1765901201653,3.2362324,129.39,129.36,0.05295825]
[1765901203056,0.0562324,129.39,129.36,0.05295825]
[1765901203258,3.2362324,129.39,129.36,0.05295825]
[1765901204262,3.18,129.37,129.36,0.05295825]
[1765901204665,3.2362324,129.39,129.36,0.05295825]
[1765901205060,3.18,129.38,129.36,0.05295825]
[1765901205862,0.0562324,129.39,129.36,0.05295825]
[1765901206071,3.2362324,129.39,129.36,0.05295825]
[1765901206574,0.0562324,129.39,129.36,0.05295825]
[1765901206773,3.2362324,129.39,129.36,0.05295825]
[1765901206976,0.0562324,129.39,129.36,3.36295825]
[1765901207463,0.0562324,129.39,129.38,3.31]
[1765901207863,3.18,129.45,129.38,3.31]
[1765901208066,10.134,129.45,129.39,6.9569]
[1765901208254,26.72345306,129.45,129.38,3.31]
[1765901208456,26.72345306,129.45,129.35,173.9925]
[1765901208457,3.18,129.45,129.35,177.3025]
[1765901208770,3.18,129.45,129.32,21.63368024]
[1765901208771,3.18,129.4,129.39,0.05954661]
[1765901209355,3.23913288,129.41,129.39,0.05954661]
[1765901209981,0.05913288,129.41,129.39,0.05954661]
[1765901210563,0.05913288,129.41,129.39,3.36954661]
[1765901211269,0.05913288,129.41,129.39,10.32654661]
[1765901211765,0.05913288,129.41,129.39,0.05954661]
[1765901211975,3.23913288,129.41,129.39,0.05954661]
[1765901214170,10.19543288,129.41,129.39,0.05954661]
[1765901214370,3.18,129.4,129.39,0.05954661]
[1765901216488,17.34820865,129.41,129.39,0.05954661]
[1765901216781,3.23913288,129.41,129.39,0.05954661]
[1765901217371,0.05913288,129.41,129.39,0.05954661]
[1765901217677,0.05913288,129.41,129.39,3.36954661]
[1765901218873,0.05913288,129.41,129.4,3.31]
[1765901219890,0.05913288,129.41,129.39,7.01674661]
[1765901220186,0.05913288,129.41,129.4,3.31]
[1765901220480,3.23913288,129.41,129.39,0.05954661]
[1765901221072,10.35452392,129.4,129.39,0.05954661]
[1765901221275,10.35452392,129.4,129.34,10.2695]
[1765901221582,7.17452392,129.43,129.37,3.31]
[1765901222289,0.0542533,129.41,129.39,10.3253825]
[1765901222685,0.0542533,129.41,129.39,0.0583825]
[1765901223076,0.0542533,129.41,129.39,7.0154825]
[1765901223572,0.0542533,129.41,129.39,3.3683825]
[1765901224179,0.0542533,129.41,129.39,0.0583825]
[1765901224582,0.0542533,129.41,129.39,10.0955825]
[1765901224784,0.0542533,129.41,129.4,3.08]
[1765901225285,0.0542533,129.41,129.39,0.0583825]
[1765901225480,0.0542533,129.41,129.39,3.1383825]
[1765901226089,0.0542533,129.41,129.39,10.0954825]
[1765901226279,3.3942533,129.41,129.39,0.0583825]
[1765901226781,10.51452392,129.4,129.39,0.0583825]
[1765901226983,10.51452392,129.4,129.34,6.9594]
[1765901227589,10.51452392,129.4,129.32,6.9605]
[1765901227590,3.34,129.37,129.32,6.9605]
[1765901227790,10.51452392,129.37,129.3,3.08]
[1765901228091,10.2999,129.34,129.32,0.04117681]
[1765901228701,0.05055242,129.35,129.32,0.04117681]
[1765901228986,0.05055242,129.35,129.32,3.12117681]
[1765901229381,0.05055242,129.35,129.32,0.04117681]
[1765901229681,6.9603,129.34,129.32,0.04117681]
[1765901229993,10.51452392,129.34,129.32,0.04117681]
[1765901230181,3.34,129.34,129.32,0.04117681]
[1765901230384,3.34,129.33,129.32,0.04117681]
[1765901230586,3.34,129.33,129.32,0.00117681]
[1765901231289,10.54052156,129.33,129.32,0.00117681]
[1765901232287,7.20052156,129.33,129.32,0.00117681]
[1765901232499,3.34,129.34,129.32,0.00117681]
[1765901232990,7.25107398,129.35,129.32,0.00117681]
[1765901233288,0.05055242,129.35,129.32,0.00117681]
[1765901233489,0.05055242,129.35,129.32,3.08117681]
[1765901234084,3.39055242,129.35,129.32,0.00117681]
[1765901234294,0.05055242,129.35,129.32,0.00117681]
[1765901235189,7.01005242,129.35,129.32,0.00117681]
[1765901235388,117.85191608,129.34,129.23,111.4344]
[1765901235588,117.85191608,129.34,129.23,3.08]
[1765901235589,7.19473729,129.32,129.23,3.08]
[1765901235788,7.19473729,129.31,129.23,3.08]
[1765901235988,10.53473729,129.31,129.23,3.08]
[1765901236188,108.3016,129.3,129.23,3.08]
[1765901236490,3.34,129.27,129.2,3.08]
[1765901236690,3.38946838,129.25,129.2,3.08]
[1765901236893,0.04946838,129.25,129.21,3.08]
[1765901237095,0.05162318,129.24,129.21,3.08]
[1765901237395,0.05162318,129.24,129.23,3.08]
[1765901237789,0.05162318,129.24,129.22,6.9662]
[1765901237989,0.05162318,129.24,129.22,10.0462]
[1765901239190,0.05162318,129.24,129.23,3.08]
[1765901239488,0.00162318,129.24,129.23,3.08]
[1765901241096,0.00162318,129.24,129.22,75.8562]
[1765901241392,0.00162318,129.24,129.22,10.0962]
[1765901241992,0.00162318,129.24,129.23,3.08]
[1765901242886,0.00162318,129.24,129.22,7.0162]
[1765901243090,0.00162318,129.24,129.22,75.8562]
[1765901243291,0.00162318,129.24,129.23,3.08]
[1765901244793,0.00162318,129.24,129.22,10.0962]
[1765901245098,0.00162318,129.24,129.22,75.8562]
[1765901245302,0.00162318,129.24,129.23,3.08]
[1765901247100,0.00162318,129.24,129.23,4.62]
[1765901249497,3.34,129.36,129.28,3.08]
[1765901249708,3.34,129.36,129.28,68.86]
[1765901250397,3.34,129.35,129.31,10.0414]
[1765901250598,0.0522463,129.34,129.32,0.05162318]
[1765901250806,3.3922463,129.34,129.32,0.05162318]
[1765901250996,0.0522463,129.34,129.32,0.05162318]
[1765901252893,3.3922463,129.34,129.32,0.05162318]
[1765901257413,3.16,129.33,129.32,0.05162318]
[1765901257710,3.16,129.33,129.27,10.2434]
[1765901258310,10.1207,129.33,129.28,10.2431]
[1765901258614,3.21921054,129.32,129.28,10.2431]
[1765901258808,3.21921054,129.32,129.25,111.615]
[1765901259013,10.18021054,129.32,129.25,69.04]
[1765901259212,10.18021054,129.32,129.25,3.28]
[1765901259413,10.18021054,129.32,129.25,69.04]
[1765901260517,3.16,129.31,129.27,6.9636]
[1765901260719,3.16,129.31,129.27,10.2436]
[1765901261419,10.1216,129.31,129.25,6.9643]
[1765901261613,0.05170041,129.29,129.25,6.9643]
[1765901261918,3.16,129.28,129.21,3.28]
[1765901262216,0.05287927,129.26,129.21,3.28]
[1765901263019,0.05287927,129.26,129.21,111.6488]
[1765901263221,0.05287927,129.26,129.22,3.28]
[1765901263924,0.05287927,129.26,129.23,3.28]
[1765901264430,0.05287927,129.26,129.24,10.2452]
[1765901265030,0.05287927,129.26,129.22,10.2459]
[1765901265230,0.05287927,129.26,129.23,3.28]
[1765901265932,3.21287927,129.26,129.2,3.28]
[1765901266133,10.1259,129.23,129.17,3.28]
[1765901266436,0.05726947,129.21,129.17,3.28]
[1765901266825,0.05726947,129.21,129.14,10.2503]
[1765901266826,3.21726947,129.21,129.14,10.2503]
[1765901267331,3.21726947,129.21,129.15,6.9699]
[1765901267528,0.05726947,129.21,129.15,3.28]
[1765901268028,0.05726947,129.21,129.18,3.28]
[1765901268732,0.05726947,129.21,129.15,111.7019]
[1765901268934,0.05726947,129.21,129.16,3.28]
[1765901270634,0.05726947,129.21,129.17,10.2489]
[1765901270836,0.05726947,129.21,129.18,3.28]
[1765901271630,0.05726947,129.21,129.18,10.2483]
[1765901272433,0.05726947,129.21,129.13,3.28]
[1765901272434,3.21726947,129.21,129.13,3.28]
[1765901272634,0.05519729,129.18,129.13,3.28]
[1765901273038,0.05519729,129.18,129.15,3.28]
[1765901274233,0.05519729,129.18,129.12,69.08]
[1765901274631,0.05519729,129.18,129.13,3.28]
[1765901274833,0.05519729,129.18,129.14,10.2505]
[1765901275032,3.21519729,129.18,129.14,3.28]
[1765901276534,0.05519729,129.18,129.15,3.28]
[1765901276936,0.05519729,129.18,129.15,10.25]
[1765901278943,0.05519729,129.18,129.16,10.2495]
[1765901279128,0.05519729,129.18,129.17,3.28]
[1765901279333,0.05519729,129.18,129.16,6.9695]
[1765901279535,0.05519729,129.18,129.16,10.2495]
[1765901280441,3.21519729,129.18,129.14,10.2502]
[1765901280642,0.05519729,129.18,129.15,3.28]
[1765901280948,0.05519729,129.18,129.15,10.25]
[1765901281138,0.05519729,129.18,129.15,3.28]
[1765901282327,3.21519729,129.18,129.13,6.9708]
[1765901282532,3.21519729,129.18,129.11,3.28]
[1765901282729,3.16,129.17,129.08,3.28]
[1765901282942,0.05636039,129.14,129.08,111.7606]
[1765901283138,0.05636039,129.14,129.09,3.28]
[1765901283343,0.05636039,129.14,129.12,3.28]
[1765901283533,0.05636039,129.14,129.11,6.9722]
[1765901283534,0.05636039,129.14,129.09,3.28]
[1765901283729,0.05636039,129.14,129.09,111.7505]
[1765901284040,0.05636039,129.14,129.12,6.9714]
[1765901284245,0.05636039,129.14,129.09,3.14]
[1765901284637,0.05636039,129.14,129.11,10.1123]
[1765901284836,0.05636039,129.14,129.11,3.14]
[1765901285136,0.05636039,129.14,129.08,68.96]
[1765901286347,3.45636039,129.14,129.05,3.14]
[1765901286549,0.05901148,129.11,129.05,3.14]
[1765901286738,0.05901148,129.11,129.05,111.6449]
[1765901286934,0.05901148,129.11,129.06,3.14]
[1765901287344,0.05901148,129.11,129.07,3.14]